bitfinex/quotes_ETHUSD_20250823
["timestamp","ask_amount","ask_price","bid_price","bid_amount"]
[1755917895882,8.88398131,4728.9,4728.8,0.02]
[1755917896588,8.88398131,4728.9,4728.8,0.02]
[1755917896744,12.67398131,4728.9,4728.8,0.02]
[1755917896944,10.44398131,4728.9,4728.8,0.02]
[1755917897174,2.77510395,4727.9,4727.8,0.02]
[1755917897477,11.47690395,4727.9,4727.8,0.02]
[1755917897674,11.91000395,4727.9,4727.8,0.02]
[1755917897865,12.38030395,4727.9,4727.8,0.02]
[1755917899177,14.61030395,4727.9,4727.8,0.02]
[1755917899475,2.77555141,4726.9,4726.8,0.02]
[1755917899639,11.50065141,4726.9,4726.8,0.02]
[1755917899844,11.95075141,4726.9,4726.8,0.02]
[1755917900476,14.68075141,4726.9,4726.8,0.02]
[1755917900677,14.18075141,4726.9,4726.8,0.02]
[1755917900880,14.68075141,4726.9,4726.8,0.02]
[1755917901089,8.49292395,4726.9,4726.8,0.02]
[1755917901252,12.28092395,4726.9,4726.8,0.02]
[1755917901447,12.78092395,4726.9,4726.8,0.02]
[1755917901650,15.01092395,4726.9,4726.8,0.02]
[1755917901971,12.78092395,4726.9,4726.8,0.02]
[1755917902744,2.77599906,4725.9,4725.8,0.02]
[1755917902982,11.50109906,4725.9,4725.8,0.02]
[1755917903176,11.95119906,4725.9,4725.8,0.02]
[1755917903376,12.7557021,4725.9,4725.8,0.02]
[1755917903877,12.8613021,4725.9,4725.8,0.02]
[1755917904186,13.01903283,4725.9,4725.8,0.02]
[1755917904380,9.23003283,4725.9,4725.8,0.02]
[1755917904546,13.01803283,4725.9,4725.8,0.02]
[1755917905384,9.23003283,4725.9,4725.8,0.02]
[1755917905548,13.01803283,4725.9,4725.8,0.02]
[1755917905950,2.1164469,4724.9,4724.8,0.02]
[1755917906155,17.24326919,4724.9,4724.8,0.02]
[1755917906374,17.1422469,4724.9,4724.8,0.02]
[1755917907249,17.72110266,4724.9,4724.8,0.02]
[1755917907449,3.66,4724.0,4723.8,0.02]
[1755917907683,9.1796,4723.9,4723.8,0.02]
[1755917907860,11.60659493,4723.9,4723.8,0.02]
[1755917908047,12.05669493,4723.9,4723.8,0.02]
[1755917909167,0.66,4723.7,4722.8,0.02]
[1755917909488,0.9701,4722.9,4722.8,0.02]
[1755917909686,9.4897,4722.9,4722.8,0.02]
[1755917909869,12.05714315,4722.9,4722.8,0.02]
[1755917910278,17.61644315,4722.9,4722.8,0.02]
[1755917910779,17.77918591,4722.9,4722.8,0.02]
[1755917910975,18.11059281,4722.9,4722.8,0.02]
[1755917911295,11.34044966,4722.9,4722.8,0.02]
[1755917911452,15.12744966,4722.9,4722.8,0.3331]
[1755917911651,14.46744966,4722.9,4722.8,0.8064]
[1755917912168,15.12744966,4722.9,4722.8,0.8064]
[1755917912376,6.25444966,4722.9,4722.8,0.8064]
[1755917912579,10.04144966,4722.9,4722.8,0.8064]
[1755917913194,6.25444966,4722.9,4722.8,0.8064]
[1755917913367,10.04144966,4722.9,4722.8,0.3331]
[1755917913562,12.46889281,4722.9,4722.8,0.024]
[1755917913990,12.91899281,4722.9,4722.8,0.024]
[1755917914670,15.14899281,4722.9,4722.8,0.024]
[1755917915577,5.77779156,4721.9,4720.6,0.4733]
[1755917915803,16.59089156,4721.9,4720.6,0.4733]
[1755917915981,2.77824016,4720.9,4719.8,0.02]
[1755917916288,5.288,4720.9,4720.8,0.3291]
[1755917916475,9.075,4720.9,4720.8,0.3291]
[1755917916677,9.075,4720.9,4720.8,0.8024]
[1755917916894,9.5473,4720.9,4720.8,0.8024]
[1755917917187,9.075,4720.9,4720.8,0.8024]
[1755917917392,9.075,4720.9,4720.8,0.3291]
[1755917918090,9.075,4720.9,4720.8,0.8024]
[1755917918291,9.075,4720.9,4720.8,0.3291]
[1755917919478,5.288,4720.9,4720.8,0.3291]
[1755917919691,9.074,4720.9,4720.8,0.3291]
[1755917920271,5.61950208,4720.9,4720.8,0.3291]
[1755917920478,9.40550208,4720.9,4720.8,0.8024]
[1755917920672,5.74550208,4720.9,4720.8,0.8024]
[1755917921070,9.40550208,4720.9,4720.8,0.8024]
[1755917921505,9.51110208,4720.9,4720.8,0.8024]
[1755917921704,9.51110208,4720.9,4720.8,0.3291]
[1755917922717,6.51110208,4720.9,4720.8,0.8024]
[1755917923080,9.51110208,4720.9,4720.8,0.8024]
[1755917923626,5.85110208,4720.9,4720.8,0.8024]
[1755917923918,2.42120146,4720.9,4720.8,0.8024]
[1755917924229,0.1056,4720.9,4720.8,0.8024]
[1755917925999,1.629,4722.2,4720.8,0.8024]
[1755917926216,3.785,4722.1,4720.9,0.4944824]
[1755917926523,0.1056,4721.3,4720.9,0.4944824]
[1755917927016,0.1056,4721.3,4721.2,0.3091]
[1755917927381,0.1056,4721.3,4721.2,0.7824]
[1755917927583,0.1056,4722.0,4721.2,0.888]
[1755917927801,0.1056,4722.0,4721.3,0.4944806]
[1755917928007,0.1056,4722.0,4721.9,0.3091]
[1755917928218,0.1056,4722.0,4721.9,0.7664]
[1755917933518,0.1056,4722.0,4721.9,0.3091]
[1755917933685,0.1056,4722.0,4720.8,0.024]
[1755917933686,0.4067,4722.0,4720.8,0.024]
[1755917933890,0.3011,4722.0,4720.9,0.4573]
[1755917934198,0.1056,4720.9,4720.8,0.024]
[1755917934402,0.1056,4720.9,4720.8,0.3301]
[1755917934806,0.1056,4720.9,4720.8,0.7874]
[1755917937399,0.1056,4720.9,4720.8,0.3301]
[1755917937599,0.1056,4720.9,4720.8,0.7874]
[1755917938510,0.1056,4720.9,4720.8,0.7374]
[1755917939832,5.409,4722.3,4720.8,0.7374]
[1755917940016,0.1056,4721.5,4720.9,0.0211824]
[1755917940217,0.1056,4721.5,4721.4,0.3061]
[1755917940425,0.1056,4721.5,4721.4,0.7634]
[1755917940731,0.1056,4722.1,4721.4,0.869]
[1755917940929,0.1056,4722.1,4721.4,0.4117]
[1755917941123,0.1056,4722.1,4721.5,0.4573]
[1755917941326,0.1056,4722.1,4722.0,0.3061]
[1755917941632,0.1056,4722.1,4722.0,0.7634]
[1755917942314,0.8613,4722.1,4720.9,0.4573]
[1755917942502,0.1056,4721.5,4720.4,2.0903]
[1755917942701,0.1056,4720.7,4720.4,0.4613]
[1755917942948,0.1056,4720.7,4720.6,0.3061]
[1755917943228,0.1056,4720.7,4720.4,0.004]
[1755917943801,0.1056,4720.7,4720.6,0.3061]
[1755917944001,1.629,4721.3,4720.6,0.7634]
[1755917944215,0.1056,4720.7,4720.6,0.7634]
[1755917944615,0.1056,4720.7,4720.6,0.3061]
[1755917945220,4.6393,4720.7,4720.4,0.004]
[1755917945510,4.1146,4720.6,4720.4,0.004]
[1755917945828,0.9611,4720.5,4720.4,0.004]
[1755917946041,6.07951965,4720.5,4720.4,0.004]
[1755917946342,6.53411965,4720.5,4720.4,0.004]
[1755917947455,0.66,4720.1,4717.9,0.4553]
[1755917947752,3.0,4720.2,4717.5,0.1056]
[1755917947753,3.7656,4719.9,4717.5,0.1056]
[1755917948038,0.1056,4717.9,4716.9,0.1064]
[1755917948605,0.1056,4717.9,4716.8,1.649]
[1755917949435,0.1056,4717.9,4717.1,0.4573]
[1755917950445,0.1056,4717.9,4717.8,0.3261]
[1755917950649,0.1056,4717.9,4717.8,0.7834]
[1755917951750,3.777,4718.6,4717.8,0.7834]
[1755917952140,3.777,4718.6,4717.8,0.3261]
[1755917952652,3.777,4718.6,4717.8,0.2761]
[1755917954014,3.777,4718.6,4716.8,1.649]
[1755917954350,0.4546,4718.5,4716.9,0.4573]
[1755917956050,0.4546,4718.5,4716.8,1.649]
[1755917956860,0.4546,4718.5,4716.9,0.4573]
[1755917957150,3.4546,4718.5,4716.9,0.4573]
[1755917957530,3.0,4718.5,4716.9,0.4573]
[1755917957732,0.4546,4718.4,4716.9,0.4573]
[1755917958130,0.66,4718.3,4716.8,1.649]
[1755917958360,3.0,4718.5,4716.9,0.4328]
[1755917959447,0.4311,4718.4,4716.9,0.4328]
[1755917960167,0.66,4718.3,4716.8,1.649]
[1755917960638,0.4311,4718.2,4716.8,1.649]
[1755917961240,0.66,4718.1,4716.8,0.02]
[1755917961476,0.4311,4718.2,4716.8,0.4528]
[1755917961687,0.1064,4716.9,4716.8,0.4528]
[1755917961976,0.1064,4716.9,4716.8,0.7404]
[1755917962342,0.1056,4717.3,4716.8,0.7404]
[1755917962542,0.1056,4717.3,4716.9,0.4328]
[1755917962742,0.1056,4717.3,4717.2,0.2876]
[1755917963369,0.1056,4717.3,4717.2,0.7204]
[1755917963558,0.1056,4717.3,4717.2,0.2876]
[1755917964261,0.1056,4717.3,4717.2,0.7204]
[1755917965445,0.1056,4717.3,4717.2,0.2876]
[1755917965845,0.1056,4717.3,4717.2,0.7204]
[1755917968972,0.1056,4717.5,4717.2,0.7204]
[1755917969271,0.1056,4717.5,4717.3,0.4328]
[1755917969574,0.1056,4717.5,4717.4,0.2876]
[1755917970094,0.1056,4717.5,4716.9,1.63]
[1755917970474,0.1056,4717.5,4717.4,0.2876]
[1755917970863,0.1056,4717.5,4717.4,0.7204]
[1755917972157,0.001,4718.5,4717.4,0.7204]
[1755917972363,0.1056,4717.9,4717.4,0.7204]
[1755917972686,0.1056,4717.9,4717.5,0.4328]
[1755917972893,0.1056,4717.9,4717.8,0.2876]
[1755917975266,0.1056,4717.9,4717.8,0.7204]
[1755917976465,0.001,4718.5,4717.8,0.7204]
[1755917976769,0.1056,4718.1,4717.9,0.02119587]
[1755917976965,0.1056,4718.1,4718.0,0.2876]
[1755917977365,0.001,4718.5,4718.0,0.7204]
[1755917977668,0.001,4718.5,4718.1,0.45399497]
[1755917977861,0.001,4718.5,4718.4,0.3932]
[1755917978082,0.001,4718.5,4718.4,0.41439362]
[1755917978276,0.001,4718.5,4718.4,1.07439362]
[1755917978509,0.001,4718.5,4718.4,1.50719362]
[1755917978707,0.001,4718.5,4718.4,1.61329244]
[1755917979005,0.001,4718.5,4718.4,1.59209882]
[1755917979406,0.02,4718.8,4718.5,0.66]
[1755917979590,0.02,4718.8,4718.7,0.9476]
[1755917979798,0.02,4718.8,4718.7,1.07439227]
[1755917980000,0.02,4718.8,4718.7,1.50719227]
[1755917980198,0.001,4719.5,4718.8,0.66]
[1755917980396,0.001,4719.5,4719.4,0.2876]
[1755917980597,0.001,4719.5,4719.4,0.41438913]
[1755917981069,0.001,4719.5,4719.4,0.826]
[1755917981272,0.001,4719.5,4719.4,0.3932]
[1755917982111,0.3051,4719.5,4719.4,0.2876]
[1755917982283,0.8418,4719.5,4717.9,1.63]
[1755917982484,0.1056,4718.5,4717.9,1.63]
[1755917983427,0.3041,4718.0,4717.9,1.63]
[1755917984090,0.7352,4718.0,4717.9,1.63]
[1755917984415,0.3041,4718.0,4717.9,1.63]
[1755917985041,0.1056,4718.1,4717.9,1.63]
[1755917987246,0.1056,4718.1,4717.8,0.02]
[1755917988039,0.3041,4717.9,4717.8,0.02]
[1755917989114,0.1056,4718.1,4717.8,0.02]
[1755917991960,0.001,4719.1,4718.0,0.31]
[1755917992118,0.1056,4718.9,4718.0,0.4156]
[1755917993614,0.0912,4718.9,4718.0,0.4156]
[1755917994346,0.001,4719.1,4718.5,0.1056]
[1755917994548,0.001,4719.1,4719.0,0.31]
[1755917995044,0.001,4719.1,4719.0,0.88919093]
[1755917995546,0.001,4719.1,4719.0,2.51819093]
[1755917995842,0.001,4719.1,4719.0,2.497]
[1755917997642,0.001,4719.1,4719.0,2.51819093]
[1755917998211,0.001,4719.1,4719.0,3.33696364]
[1755918000347,0.001,4719.1,4719.0,3.21017271]
[1755918000718,0.02,4719.8,4719.0,3.21017271]
[1755918000719,0.02,4719.8,4719.1,3.66]
[1755918000918,0.02,4719.8,4719.1,0.4524]
[1755918001120,0.02,4719.8,4718.8,0.02]
[1755918001320,0.02,4719.8,4718.9,3.761]
[1755918001560,0.3057,4719.0,4718.9,3.761]
[1755918002060,0.001,4719.1,4718.9,3.761]
[1755918002274,0.001,4719.1,4718.8,0.02]
[1755918002424,0.3057,4719.0,4718.9,3.761]
[1755918002625,0.7427,4719.0,4718.9,3.761]
[1755918002841,0.3057,4719.0,4718.9,3.761]
[1755918003050,0.001,4719.1,4718.9,3.761]
[1755918003359,0.3057,4719.0,4718.7,1.629]
[1755918003646,0.001,4719.1,4719.0,3.76]
[1755918003856,0.001,4719.1,4719.0,4.5224]
[1755918004016,0.001,4719.1,4719.0,5.1824]
[1755918004215,0.001,4719.1,4719.0,4.5224]
[1755918004422,0.001,4719.1,4719.0,3.76]
[1755918004621,0.001,4719.1,4719.0,4.07]
[1755918004857,0.7437,4719.1,4717.9,1.629]
[1755918005036,0.437,4719.0,4718.0,3.76]
[1755918005235,0.3057,4718.1,4717.9,1.629]
[1755918005435,0.3057,4718.1,4718.0,3.76]
[1755918005638,0.437,4718.7,4718.0,3.76]
[1755918005991,0.3057,4718.1,4717.1,1.78801174]
[1755918006266,0.3057,4718.1,4717.5,3.76]
[1755918006568,0.437,4718.0,4717.5,3.76]
[1755918006753,0.3057,4717.9,4717.5,3.76]
[1755918006924,0.3057,4717.9,4717.1,1.629]
[1755918006925,0.7427,4717.9,4717.4,3.759]
[1755918007131,0.7427,4717.9,4716.8,0.024]
[1755918007462,1.4027,4717.9,4716.8,0.024]
[1755918007821,1.487634,4717.9,4716.8,0.024]
[1755918008646,0.827634,4717.9,4716.8,0.024]
[1755918008958,0.7427,4717.9,4716.8,0.024]
[1755918009456,1.4027,4717.9,4716.8,0.024]
[1755918010329,0.7427,4717.9,4716.8,0.024]
[1755918010558,0.8483,4717.9,4716.8,0.024]
[1755918010764,6.6278871,4717.9,4716.8,0.024]
[1755918011063,6.95958558,4717.9,4716.8,0.024]
[1755918011275,0.66,4717.5,4716.8,0.024]
[1755918011430,0.66,4716.9,4716.8,0.024]
[1755918011627,5.78003646,4716.9,4716.8,0.024]
[1755918012128,9.64443646,4716.9,4716.8,0.024]
[1755918012323,9.97628106,4716.9,4716.8,0.024]
[1755918012748,10.13601577,4716.9,4716.8,0.024]
[1755918014092,6.27161577,4716.9,4716.8,0.024]
[1755918014295,3.59797931,4716.9,4716.8,0.024]
[1755918014455,7.0898446,4716.9,4716.8,0.024]
[1755918014650,0.4382446,4716.9,4716.8,0.024]
[1755918014857,4.1962446,4716.9,4716.8,0.024]
[1755918015057,7.8562446,4716.9,4716.8,0.024]
[1755918015471,4.8562446,4716.9,4716.8,0.024]
[1755918016110,0.4382446,4716.9,4716.8,0.024]
[1755918016275,4.1972446,4716.9,4716.8,0.024]
[1755918016481,0.4382446,4716.9,4716.8,0.024]
[1755918016664,0.1064,4716.9,4716.8,0.024]
[1755918017095,0.1056,4717.2,4716.8,0.024]
[1755918017314,1.63,4718.3,4717.2,0.4524]
[1755918017673,1.63,4718.3,4716.8,0.1304]
[1755918017867,0.3057,4716.9,4716.8,0.1304]
[1755918018088,0.3057,4716.9,4716.8,0.024]
[1755918018089,0.8491,4716.9,4716.8,0.024]
[1755918018386,1.5091,4716.9,4716.8,0.024]
[1755918019717,8.2681,4716.9,4716.8,0.024]
[1755918019872,8.59988934,4716.9,4716.8,0.024]
[1755918020072,8.57845634,4716.9,4716.8,0.024]
[1755918020513,10.6984928,4716.9,4716.8,0.024]
[1755918021519,10.86114017,4716.9,4716.8,0.024]
[1755918022324,2.78021626,4716.5,4716.4,0.004]
[1755918022476,7.69891626,4716.5,4716.4,0.004]
[1755918022695,8.14081626,4716.5,4716.4,0.004]
[1755918023812,11.89981626,4716.5,4716.4,0.004]
[1755918024221,11.89133764,4716.5,4716.4,0.004]
[1755918024584,5.3606,4716.5,4716.4,0.004]
[1755918024785,9.1196,4716.5,4716.4,0.004]
[1755918025209,9.7796,4716.5,4716.4,0.004]
[1755918025711,6.7796,4716.5,4716.4,0.004]
[1755918026019,9.7796,4716.5,4716.4,0.004]
[1755918026924,11.89981626,4716.5,4716.4,0.004]
[1755918030092,12.00621626,4716.5,4716.4,0.004]
[1755918031024,12.09120326,4716.5,4716.4,0.004]
[1755918031829,5.01448601,4715.9,4715.8,1e-08]
[1755918031999,12.06218601,4715.9,4715.8,1e-08]
[1755918032197,12.50408601,4715.9,4715.8,1e-08]
[1755918032625,12.92104777,4715.9,4715.8,1e-08]
[1755918032790,12.58909201,4715.9,4715.8,1e-08]
[1755918034925,5.01471086,4715.4,4715.3,1e-08]
[1755918035124,18.79041086,4715.4,4715.3,1e-08]
[1755918035313,19.23231086,4715.4,4715.3,1e-08]
[1755918035721,19.23231086,4715.4,4713.8,0.02]
[1755918035722,2.234,4714.4,4713.8,0.02]
[1755918036015,8.30408568,4713.9,4713.8,0.02]
[1755918036328,12.06308568,4713.9,4713.8,0.02]
[1755918036506,12.39513567,4713.9,4713.8,0.02]
[1755918036704,12.49043567,4713.9,4713.8,1e-08]
[1755918037025,12.59785955,4713.9,4713.8,1e-08]
[1755918037223,2.894,4713.6,4711.8,0.02]
[1755918037526,5.78183581,4712.9,4711.9,0.4474]
[1755918037726,16.27083581,4712.9,4711.9,0.4474]
[1755918037898,16.55953581,4712.9,4711.8,0.02]
[1755918038230,16.27083581,4712.9,4711.9,0.4474]
[1755918038727,14.149,4712.9,4712.8,0.7614]
[1755918039028,16.26983581,4712.9,4712.8,0.02]
[1755918039328,17.00043581,4712.9,4712.8,0.02]
[1755918039993,17.33257325,4712.9,4712.8,0.02]
[1755918040194,2.78228612,4711.9,4711.8,0.02]
[1755918040393,11.60198612,4711.9,4711.8,0.02]
[1755918040618,2.78273663,4710.9,4708.8,0.02]
[1755918040926,16.56143663,4710.9,4709.1,0.4474]
[1755918041138,17.00333663,4710.9,4709.1,0.4474]
[1755918041334,17.92074624,4710.9,4708.8,0.02]
[1755918041710,13.66074624,4710.9,4708.8,0.02]
[1755918042024,7.14740961,4710.9,4710.8,0.314]
[1755918042346,8.80840961,4710.9,4710.8,0.314]
[1755918042511,10.93114624,4710.9,4710.8,0.02]
[1755918042718,7.17114624,4710.9,4710.8,0.02]
[1755918042919,12.32174624,4710.9,4710.8,0.02]
[1755918043145,8.56174624,4710.9,4710.8,0.02]
[1755918043445,0.66,4710.0,4708.8,0.02]
[1755918043671,3.0,4709.9,4708.8,0.02]
[1755918043837,5.292,4709.9,4708.8,0.02]
[1755918044024,0.085097,4710.9,4709.8,0.314]
[1755918044230,3.768,4710.8,4709.9,0.4474]
[1755918044545,1.632,4711.0,4710.7,0.294]
[1755918044745,0.33228606,4711.5,4710.8,0.4474]
[1755918044947,0.4474,4711.0,4710.8,0.4474]
[1755918045147,3.772,4710.9,4710.8,0.4474]
[1755918045344,1.632,4710.9,4710.8,0.7414]
[1755918045543,0.4474,4711.4,4710.8,0.7414]
[1755918045742,1.632,4712.2,4710.9,0.4474]
[1755918045963,3.78,4712.1,4710.9,0.4474]
[1755918046327,3.78,4712.1,4712.0,0.294]
[1755918046872,3.78,4712.1,4712.0,0.7414]
[1755918048175,3.78,4712.1,4710.8,0.4628]
[1755918048176,0.66,4712.0,4710.8,0.4628]
[1755918048482,0.66,4711.8,4710.8,0.4628]
[1755918049369,0.66,4711.6,4710.8,0.4628]
[1755918049571,3.779,4711.5,4710.8,0.4628]
[1755918049877,3.0,4711.4,4710.4,0.4628]
[1755918050165,1.632,4711.3,4710.4,0.4628]
[1755918050459,1.632,4711.3,4711.2,0.2951]
[1755918050663,5.8728,4711.3,4711.2,0.2951]
[1755918051037,2.0948,4711.3,4711.2,0.7579]
[1755918051253,5.8708,4711.3,4711.2,0.7579]
[1755918051453,2.0948,4711.3,4711.2,0.7579]
[1755918051674,1.632,4711.3,4711.2,0.7579]
[1755918051986,5.407,4711.3,4711.2,0.7579]
[1755918052188,5.5134,4711.3,4711.2,0.7579]
[1755918052902,1.7384,4711.3,4711.2,0.7579]
[1755918053045,5.5134,4711.3,4711.2,0.7579]
[1755918053747,5.5134,4711.3,4711.0,0.004]
[1755918053748,5.5124,4711.3,4711.0,0.004]
[1755918054298,1.7384,4711.3,4711.2,0.2951]
[1755918054442,1.7384,4711.3,4711.2,0.7579]
[1755918054646,5.5124,4711.3,4711.2,0.7579]
[1755918055400,5.5114,4711.3,4711.2,0.7579]
[1755918058097,5.5114,4711.3,4711.2,0.2951]
[1755918059700,5.5114,4711.3,4711.2,0.7579]
[1755918060282,0.66,4712.6,4711.2,0.7579]
[1755918060283,1.632,4712.6,4711.2,0.7579]
[1755918060484,1.632,4712.6,4711.3,0.4628]
[1755918060705,1.632,4712.6,4712.5,0.2951]
[1755918060917,5.398,4712.6,4712.5,0.2951]
[1755918061122,5.398,4712.6,4712.5,0.7579]
[1755918061325,0.33209953,4713.5,4712.5,0.7579]
[1755918061511,3.766,4713.4,4712.6,0.4628]
[1755918061716,3.766,4713.3,4712.6,0.4628]
[1755918061916,3.766,4713.3,4713.2,0.2951]
[1755918062111,1.632,4713.9,4713.2,0.7579]
[1755918062422,3.765,4713.7,4713.2,0.7579]
[1755918062590,0.33200347,4714.5,4713.3,0.4628]
[1755918062791,3.766,4714.0,4713.7,0.2951]
[1755918063408,0.66,4713.7,4711.8,0.4628]
[1755918063596,0.66,4713.5,4711.8,0.4628]
[1755918063787,3.66,4713.3,4711.8,0.4628]
[1755918064387,0.33204674,4713.0,4711.8,0.4628]
[1755918064621,3.772,4712.9,4711.8,0.4628]
[1755918064830,3.772,4712.9,4710.6,1.632]
[1755918064831,3.66,4712.8,4710.6,1.632]
[1755918065015,3.66,4712.8,4710.4,0.004]
[1755918065016,0.66,4712.6,4710.4,0.004]
[1755918065330,2.78238091,4711.7,4710.4,0.004]
[1755918065509,0.66,4711.5,4710.4,0.004]
[1755918065892,1.1053,4711.5,4710.4,0.004]
[1755918066796,0.66,4711.3,4710.4,0.004]
[1755918067300,0.4453,4711.3,4710.8,0.004]
[1755918067500,3.33216311,4711.5,4710.8,0.004]
[1755918067501,3.77,4711.2,4710.8,0.004]
[1755918067707,3.77,4711.2,4711.1,0.4628]
[1755918067926,3.771,4711.2,4711.1,0.7579]
[1755918068132,3.771,4711.2,4711.1,0.2951]
[1755918068292,3.771,4711.2,4710.8,0.004]
[1755918068932,3.771,4711.2,4709.9,0.004]
[1755918068933,2.12314225,4710.0,4709.9,0.004]
[1755918069143,5.6075,4710.0,4709.9,0.004]
[1755918069497,9.3955,4710.0,4709.9,0.004]
[1755918069824,5.6075,4710.0,4709.9,0.004]
[1755918070035,9.3955,4710.0,4709.9,0.004]
[1755918070240,2.1232324,4709.8,4708.8,0.02]
[1755918070446,6.20553821,4708.9,4708.8,0.02]
[1755918070750,11.62753821,4708.9,4708.8,0.02]
[1755918071034,12.07283821,4708.9,4708.8,0.02]
[1755918071405,12.40523256,4708.9,4708.8,0.02]
[1755918071806,12.40523256,4708.9,4706.8,0.02]
[1755918071807,0.66,4708.7,4706.8,0.02]
[1755918072042,6.20598929,4707.9,4706.8,0.02]
[1755918072240,0.66,4707.7,4705.8,0.02]
[1755918072537,3.7664,4705.9,4705.8,0.02]
[1755918072853,9.1984,4705.9,4705.8,0.02]
[1755918073058,5.3984,4705.9,4705.8,0.02]
[1755918073340,5.3984,4705.9,4703.8,0.02]
[1755918073341,3.0,4705.4,4703.8,0.02]
[1755918073540,0.66,4705.1,4703.8,0.02]
[1755918073704,0.1064,4703.9,4703.8,0.02]
[1755918073910,0.4453,4706.5,4703.8,0.02]
[1755918074105,0.33268675,4705.1,4703.8,0.4828]
[1755918074340,3.913,4705.0,4703.8,0.4828]
[1755918074526,0.33268675,4705.1,4703.8,0.02]
[1755918074705,3.66,4704.8,4703.8,0.02]
[1755918074909,0.66,4704.6,4703.8,0.02]
[1755918075215,2.78568756,4704.4,4703.8,0.02]
[1755918075420,3.66,4704.2,4703.8,0.02]
[1755918075629,0.66,4704.2,4703.8,0.02]
[1755918075831,3.915,4704.1,4703.8,0.02]
[1755918076038,3.915,4704.0,4703.8,0.4828]
[1755918076237,3.915,4704.0,4703.8,0.02]
[1755918076743,3.916,4703.9,4703.8,0.02]
[1755918077562,1.632,4704.3,4703.8,0.4828]
[1755918077717,3.915,4704.2,4703.9,0.4628]
[1755918077920,1.632,4704.3,4704.0,0.4628]
[1755918078217,5.105,4705.9,4704.0,0.4628]
[1755918078218,3.915,4704.4,4704.0,0.4628]
[1755918078412,3.915,4704.4,4704.1,0.02125805]
[1755918078650,3.915,4704.4,4704.2,0.4446]
[1755918078816,3.915,4704.4,4704.3,0.4446]
[1755918079725,3.914,4704.6,4704.3,0.4446]
[1755918079930,3.914,4704.6,4704.4,0.4446]
[1755918080128,3.914,4704.6,4703.8,0.02]
[1755918080333,1.633,4705.2,4704.5,0.4446]
[1755918080530,3.91,4705.1,4704.5,0.4446]
[1755918080819,3.4293,4705.0,4703.8,0.02]
[1755918081149,0.66,4704.9,4703.8,0.02]
[1755918081543,0.66,4704.7,4703.8,0.02]
[1755918081741,3.66,4704.5,4703.8,0.02]
[1755918081955,0.66,4704.5,4703.8,0.02]
[1755918082255,3.66,4704.3,4703.8,0.02]
[1755918082452,0.66,4704.1,4703.8,0.02]
[1755918082753,0.66,4703.9,4703.8,0.02]
[1755918082966,3.66,4703.9,4703.8,0.02]
[1755918083130,5.0003,4703.9,4703.8,0.02]
[1755918083322,10.62009325,4703.9,4703.8,0.02]
[1755918083517,6.70909325,4703.9,4703.8,0.02]
[1755918083820,10.62309325,4703.9,4702.8,0.024]
[1755918084021,5.89274757,4702.9,4702.8,0.024]
[1755918084338,5.294,4702.9,4702.8,0.024]
[1755918084528,11.76464757,4702.9,4702.8,0.024]
[1755918084719,12.18270451,4702.9,4702.8,0.024]
[1755918084922,6.14135694,4702.9,4702.8,0.024]
[1755918085143,10.05935694,4702.9,4702.8,0.024]
[1755918085344,5.71205694,4702.9,4702.8,0.024]
[1755918085665,3.92,4703.1,4702.8,0.4686]
[1755918085849,1.634,4703.9,4702.8,0.024]
[1755918086176,1.634,4705.2,4702.9,0.68126347]
[1755918086377,3.933,4704.9,4703.0,0.4446]
[1755918086959,0.001,4704.9,4703.1,0.02126257]
[1755918087260,3.933,4704.8,4703.2,0.4446]
[1755918087464,3.932,4704.7,4703.3,0.02126166]
[1755918087660,3.932,4704.7,4703.4,0.4446]
[1755918087860,0.001,4704.9,4703.5,0.02126076]
[1755918088042,0.001,4704.9,4703.6,0.4446]
[1755918089055,0.001,4704.9,4703.7,0.68125985]
[1755918089367,0.001,4704.9,4703.7,0.66]
[1755918089574,0.001,4704.9,4703.9,0.66]
[1755918089786,3.935,4704.8,4703.8,0.4446]
[1755918090095,0.001,4704.9,4703.8,0.4446]
[1755918090245,3.936,4704.7,4703.8,0.4446]
[1755918090450,0.001,4704.9,4703.9,0.02125895]
[1755918090689,0.001,4704.9,4703.9,0.68125895]
[1755918090856,0.001,4704.9,4704.0,0.4446]
[1755918091059,0.001,4704.9,4704.1,0.68125805]
[1755918091271,0.001,4704.9,4704.0,2.0796]
[1755918091757,0.001,4704.9,4704.1,0.46585805]
[1755918092281,0.001,4704.9,4704.1,0.4446]
[1755918093389,0.02,4704.8,4704.2,0.02125759]
[1755918093683,0.02,4704.8,4704.3,0.4446]
[1755918093887,0.02,4704.8,4704.4,0.68125669]
[1755918094294,0.02,4704.8,4704.4,0.02125669]
[1755918094492,0.02,4704.8,4704.1,3.0]
[1755918094493,0.02,4704.8,4704.6,0.66]
[1755918094697,0.02,4704.8,4704.7,0.7664]